Workbook

Sheet Lista de Tabelas

Sheet 1. Histórico de Produção
B2: 1. HISTÓRICO DA PRODUÇÃO NACIONAL
B6: Tabela 1. Histórico de produção de petróleo – óleo e condensado (Mbbl/d)
C8: 02/2017 | D8: 03/2017 | E8: 04/2017 | F8: 05/2017 | G8: 06/2017 | H8: 07/2017 | I8: 08/2017 | J8: 09/2017 | K8: 10/2017 | L8: 11/2017 | M8: 12/2017 | N8: 01/2018 | O8: 02/2018
B9: Óleo | C9: 2658.564168 | D9: 2533.194635 | E9: 2522.363234 | F9: 2637.438696 | G9: 2659.871494 | H9: 2608.617617 | I9: 2559.986072 | J9: 2636.322894 | K9: 2611.378162 | L9: 2580.122926 | M9: 2597.38126 | N9: 2599.041205 | O9: 2603.949133
B10: Condensado | C10: 16.93628201 | D10: 16.77215602 | E10: 16.6083469 | F10: 15.83565485 | G10: 14.8980182 | H10: 14.24561439 | I10: 16.07766147 | J10: 16.26842583 | K10: 16.04913859 | L10: 14.52041587 | M10: 14.99073508 | N10: 16.15223687 | O10: 13.39616944
B11: Petróleo | C11: 2675.50045 | D11: 2549.966791 | E11: 2538.971581 | F11: 2653.274351 | G11: 2674.769512 | H11: 2622.863231 | I11: 2576.063733 | J11: 2652.59132 | K11: 2627.427301 | L11: 2594.643342 | M11: 2612.371995 | N11: 2615.193442 | O11: 2617.345302
B14: Tabela 2. Histórico de produção de gás natural – GASA e GASN (MMm3/d)
C16: 02/2017 | D16: 03/2017 | E16: 04/2017 | F16: 05/2017 | G16: 06/2017 | H16: 07/2017 | I16: 08/2017 | J16: 09/2017 | K16: 10/2017 | L16: 11/2017 | M16: 12/2017 | N16: 01/2018 | O16: 02/2018
B17: GASA | C17: 86.18365474 | D17: 80.95841335 | E17: 80.96537722 | F17: 83.58471687 | G17: 87.3234836 | H17: 86.69900772 | I17: 83.66103375 | J17: 86.82787454 | K17: 85.55876672 | L17: 84.97001551 | M17: 84.23499606 | N17: 84.84757378 | O17: 88.64933961
B18: GASN | C18: 20.4551476 | D18: 20.38736208 | E18: 21.61568431 | F18: 21.19573938 | G18: 23.81047002 | H18: 28.30700237 | I18: 28.17901438 | J18: 27.17850759 | K18: 29.04530482 | L18: 28.44006587 | M18: 29.13769891 | N18: 27.57247712 | O18: 21.16345755
B19: Gás Total | C19: 106.6388023 | D19: 101.3457754 | E19: 102.5810615 | F19: 104.7804563 | G19: 111.1339536 | H19: 115.0060101 | I19: 111.8400481 | J19: 114.0063821 | K19: 114.6040715 | L19: 113.4100814 | M19: 113.372695 | N19: 112.4200509 | O19: 109.8127972
B22: Tabela 3. Histórico da movimentação da gás natural (Mm³/d)
B24: Mês/Ano | C24: Consumo Interno | D24: Queima | E24: Disponível | F24: Injeção | G24: Produção
B25: 02/2017 | C25: 13343.43124 | D25: 3955.954565 | E25: 61950.93541 | F25: 27388.48113 | G25: 106638.8023
B26: 03/2017 | C26: 13024.78898 | D26: 3466.550431 | E26: 56362.79762 | F26: 28491.6384 | G26: 101345.7754
B27: 04/2017 | C27: 12877.71641 | D27: 3553.205192 | E27: 60472.89369 | F27: 25677.21998 | G27: 102581.0353
B28: 05/2017 | C28: 12928.9493 | D28: 3707.155246 | E28: 61891.60953 | F28: 26252.7214 | G28: 104780.4355
B29: 06/2017 | C29: 13140.54061 | D29: 4511.200172 | E29: 66917.36228 | F29: 26564.84285 | G29: 111133.9459
B30: 07/2017 | C30: 13343.21249 | D30: 4226.044698 | E30: 67927.63944 | F30: 29509.11347 | G30: 115006.0101
B31: 08/2017 | C31: 13286.43177 | D31: 3387.473764 | E31: 67296.47626 | F31: 27869.66634 | G31: 111840.0481
B32: 09/2017 | C32: 13345.71147 | D32: 3375.51585 | E32: 66905.03869 | F32: 30376.34252 | G32: 114002.6085
B33: 10/2017 | C33: 13472.03842 | D33: 3392.368185 | E33: 70128.70667 | F33: 27610.91478 | G33: 114604.0281
B34: 11/2017 | C34: 13068.67993 | D34: 3566.875619 | E34: 69971.38093 | F34: 26802.92828 | G34: 113409.8648
B35: 12/2017 | C35: 12936.25028 | D35: 3865.641672 | E35: 69874.33037 | F35: 26696.46721 | G35: 113372.6895
B36: 01/2018 | C36: 12808.82006 | D36: 4018.518908 | E36: 65541.66205 | F36: 30039.92085 | G36: 112408.9219
B37: 02/2018 | C37: 12846.80783 | D37: 3598.210344 | E37: 60473.28996 | F37: 32894.48902 | G37: 109812.7972
B39: Tabela 4. Histórico de produção de petróleo e gás natural (Mboe/d)
C42: =C16 -> 02/2017 | D42: =D16 -> 03/2017 | E42: 04/2017 | F42: 05/2017 | G42: 06/2017 | H42: 07/2017 | I42: 08/2017 | J42: 09/2017 | K42: 10/2017 | L42: 11/2017 | M42: 12/2017 | N42: 01/2018 | O42: 02/2018
B43: Petróleo | C43: =C11 -> 2675.50045 | D43: 2549.966791 | E43: 2538.971581 | F43: 2653.274351 | G43: 2674.769512 | H43: 2622.863231 | I43: 2576.063733 | J43: 2652.59132 | K43: 2627.427301 | L43: 2594.643342 | M43: 2612.371995 | N43: 2615.193442 | O43: 2617.345302
B44: Gás Natural | C44: =C19*6.28981 -> 670.7378053 | D44: 637.4456718 | E44: 645.2153866 | F44: 659.0491615 | G44: 699.0114528 | H44: 723.3659524 | I44: 703.4526531 | J44: 717.0784824 | K44: 720.8378353 | L44: 713.3278639 | M44: 713.0927105 | N44: 707.1007603 | O44: 690.7016297
B45: Produção Total | C45: =SUM(C43:C44) -> 3346.238256 | D45: =SUM(D43:D44) -> 3187.412463 | E45: 3184.186968 | F45: 3312.323512 | G45: 3373.780965 | H45: 3346.229183 | I45: 3279.516386 | J45: 3369.669802 | K45: 3348.265136 | L45: 3307.971206 | M45: 3325.464706 | N45: 3322.294202 | O45: =SUM(O43:O44) -> 3308.046932

Sheet 2. Dados de Produção
B2: 2. DADOS DE PRODUÇÃO - DISTRIBUIÇÃO
B6: Tabela 5. Distribuição da produção de petróleo e gás natural por estado
B8: Estado | C8: Petróleo (bbl/d) | D8: Gás Natural (Mm³/d) | E8: Produção Total (boe/d) | F8: Nº Campos Produtores
B9: Rio de Janeiro | C9: 1805601.008 | D9: 54908.99506 | E9: 2150968.154 | F9: 35
B10: São Paulo | C10: 344159.9875 | D10: 19896.92452 | E10: 469307.8624 | F10: 6
B11: Espírito Santo | C11: 343890.0591 | D11: 9317.538576 | E11: 402495.6064 | F11: 50
B12: Amazonas | C12: 21716.42489 | D12: 13952.96964 | E12: 109477.9529 | F12: 7
B13: Bahia | C13: =30767.8384312382+11.6269384210714 -> 30779.46537 | D13: =6995.323425+0.0214285714285714 -> 6995.344854 | E13: =74767.0936630374+11.7617200639285 -> 74778.85538 | F13: =84+1 -> 85
B14: Rio Grande do Norte | C14: 41916.86541 | D14: 1002.195923 | E14: 48220.48735 | F14: 79
B15: Sergipe | C15: 21308.47665 | D15: 2294.676711 | E15: 35741.55718 | F15: 21
B16: Alagoas | C16: 3003.692334 | D16: 1182.693128 | E16: 10442.6074 | F16: 12
B17: Ceará | C17: 4967.981943 | D17: 84.93913929 | E17: 5502.232991 | F17: 6
B18: Maranhão | C18: 1.340641552 | D18: 176.5196039 | E18: 1111.615412 | F18: 2
B19: Total Geral | C19: =SUM(C9:C18) -> 2617345.302 | D19: =SUM(D9:D18) -> 109812.7972 | E19: 3308046.932 | F19: 303
B22: Tabela 6. Distribuição da produção de petróleo e gás natural por bacia
B24: Bacia | C24: Petróleo (bbl/d) | D24: Gás Natural (Mm³/d) | E24: Produção Total (boe/d) | F24: Nº Campos Produtores
B25: Santos | C25: 1231456.534 | D25: 59233.65305 | E25: 1604024.957 | F25: 11
B26: Campos | C26: 1228621.429 | D26: 22965.11502 | E26: 1373067.639 | F26: 38
B27: Solimões | C27: 21716.42489 | D27: 13952.96964 | E27: 109477.9529 | F27: 7
B28: Potiguar | C28: 42952.58596 | D28: 1003.018385 | E28: 49261.38102 | F28: 81
B29: Espírito Santo | C29: 33573.09237 | D29: 1924.690088 | E29: 45679.02733 | F29: 42
B30: Recôncavo | C30: 30356.93256 | D30: 2185.080689 | E30: 44100.67492 | F30: 79
B31: Sergipe | C31: 21308.47665 | D31: 2294.676711 | E31: 35741.55718 | F31: 21
B32: Camamu | C32: 420.4661609 | D32: 4773.750608 | E32: 30446.45047 | F32: 2
B33: Alagoas | C33: 3003.692334 | D33: 1182.693128 | E33: 10442.6074 | F33: 12
B34: Ceará | C34: 3932.261394 | D34: 84.1166775 | E34: 4461.339313 | F34: 4
B35: Parnaíba | C35: 1.340641552 | D35: 176.5196039 | E35: 1111.615412 | F35: 2
B36: Tucano Sul | C36: 2.066651857 | D36: 36.51355679 | E36: 231.7299865 | F36: 4
B37: Total Geral | C37: 2617345.302 | D37: 109812.7972 | E37: 3308046.932 | F37: 303
B40: Tabela 7. Distribuição da produção de petróleo e gás natural por operador
B42: Nº | C42: Operador | D42: Petróleo (bbl/d) | E42: Gás Natural (Mm³/d) | F42: Produção Total (boe/d)
B43: 1 | C43: Petrobras | D43: 2427536.479 | E43: 107717.0644 | F43: 3105056.347
B44: 2 | C44: Statoil Brasil O&G | D44: 69753.94348 | E44: 123.6357143 | F44: 70531.58863
B45: 3 | C45: Shell Brasil | D45: 44953.41638 | E45: 413.9964211 | F45: 47557.37521
B46: 4 | C46: Total E&P do Brasil | D46: 38319.21852 | E46: 1031.066318 | F46: 44804.42976
B47: 5 | C47: Chevron Frade | D47: 17384.28006 | E47: 219.8527857 | F47: 18767.11231
B48: 6 | C48: Dommo Energia | D48: 7797.643674 | E48: 21.31897071 | F48: 7931.735949
B49: 7 | C49: PetroRio O&G | D49: 6926.95405 | E49: 20.34937536 | F49: 7054.947755
B50: 8 | C50: Maha Energy | D50: 1396.330989 | E50: 35.39173714 | F50: 1618.938291
B51: 9 | C51: SHB | D51: 1356.132889 | E51: 12.20033964 | F51: 1432.870708
B52: 10 | C52: Parnaíba Gás Natural | D52: 1.340641552 | E52: 176.5196039 | F52: 1111.615412
B53: 11 | C53: Petrosynergy | D53: 484.3899537 | E53: 8.192049643 | F53: 535.9163894
B54: 12 | C54: Partex Brasil | D54: 318.2104733 | E54: 0.4553228571 | F54: 321.0743676
B55: 13 | C55: UP Petróleo | D55: 274.4603633 | E55: 4.027035714 | F55: 299.7896528
B56: 14 | C56: Nova Petróleo Rec | D56: 238.9674597 | E56: 1.466540714 | F56: 248.1917221
B57: 15 | C57: Petrogal Brasil | D57: 178.1993724 | E57: 3.743802143 | F57: 201.7471765
B58: 16 | C58: Imetame | D58: 142.8197954 | E58: 5.682219643 | F58: 178.5598773
B59: 17 | C59: Recôncavo E&P | D59: 106.160761 | E59: 2.046543571 | F59: 119.0331312
B60: 18 | C60: Phoenix | D60: 11.07860177 | E60: 13.10456036 | F60: 93.50379655
B61: 19 | C61: Santana | D61: 34.09070281 | E61: 1.497682143 | F61: 43.51083893
B62: 20 | C62: Vipetro | D62: 34.00544893 | E62: 0.08181607143 | F62: 34.52005647
B63: 21 | C63: IPI | D63: 19.32544122 | E63: 0.6268092857 | F63: 23.26795254
B64: 22 | C64: Perícia | D64: 19.52087461 | E64: 0.06207142857 | F64: 19.9112921
B65: 23 | C65: Guto & Cacal | D65: 14.23945593 | E65: 0.04502964286 | F65: 14.52268383
B66: 24 | C66: Alvopetro | D66: 13.41841109 | E66: 0.1530703571 | F66: 14.38119455
B67: 25 | C67: Great Oil | D67: 11.62693842 | E67: 0.02142857143 | F67: 11.76172006
B68: 26 | C68: EPG Brasil | D68: 7.231035139 | E68: 0.18515 | F68: 8.395593461
B69: 27 | C69: Central Resources | D69: 8.33399825 | E69: 0.008214285714 | F69: 8.385664546
B70: 28 | C70: Nord | D70: 2.111579071 | E70: 0 | F70: 2.111579071
B71: 29 | C71: Leros | D71: 1.372077124 | E71: 0.002181428571 | F71: 1.385797896
C72: Total Geral | D72: 2617345.302 | E72: 109812.7972 | F72: 3308046.932
B75: Tabela 8. Distribuição da produção de petróleo e gás natural por concessionário
B77: Nº | C77: Concessionário | D77: Petróleo (bbl/d) | E77: Gás Natural (Mm³/d) | F77: Produção Total (boe/d)
B78: 1 | C78: Petrobras | D78: 1971191.142 | E78: 85202.58378 | F78: 2507099.205
B79: 2 | C79: Shell Brasil | D79: 332579.1642 | E79: 13041.11015 | F79: 414605.2692
B80: 3 | C80: Petrogal Brasil | D80: 86449.78211 | E80: 3729.46375 | F80: 109907.4005
B81: 4 | C81: Repsol Sinopec | D81: 80024.41173 | E81: 2977.54947 | F81: 98752.63216
B82: 5 | C82: Statoil Brasil O&G | D82: 41852.3661 | E82: 74.18142 | F82: 42318.95314
B83: 6 | C83: Sinochem Petróleo | D83: 27901.5774 | E83: 49.45428 | F83: 28212.63542
B84: 7 | C84: Total E&P do Brasil | D84: 19496.0681 | E84: 664.4252875 | F84: 23675.17692
B85: 8 | C85: Queiroz Galvão | D85: 188.909325 | E85: 2148.1875 | F85: 13700.60054
B86: 9 | C86: ONGC Campos | D86: 12137.42243 | E86: 111.779055 | F86: 12840.49145
B87: 10 | C87: QPI Brasil | D87: 10339.28577 | E87: 95.219195 | F87: 10938.19642
B88: 11 | C88: Chevron Frade | D88: 8994.626524 | E88: 113.7518387 | F88: 9710.103976
B89: 12 | C89: Dommo Energia | D89: 7797.6437 | E89: 21.319 | F89: 7931.736159
B90: 13 | C90: PetroRio O&G | D90: 6926.9541 | E90: 20.3494 | F90: 7054.94796
B91: 14 | C91: Frade | D91: 3174.369546 | E91: 40.14512128 | F91: 3426.874732
B92: 15 | C92: Geopark Brasil | D92: 41.97985 | E92: 477.375 | F92: 3044.577899
B93: 16 | C93: Brasoil Manati | D93: 41.97985 | E93: 477.375 | F93: 3044.577899
B94: 17 | C94: CNOOC Petroleum | D94: 1631.77729 | E94: 108.69807 | F94: 2315.467498
B95: 18 | C95: CNODC Brasil | D95: 1631.77729 | E95: 108.69807 | F95: 2315.467498
B96: 19 | C96: Maha Energy | D96: 1396.331 | E96: 35.3917 | F96: 1618.938069
B97: 20 | C97: Chevron Brasil | D97: 1490.722837 | E97: 4.8076125 | F97: 1520.961807
B98: 21 | C98: Parnaíba Gás Natural | D98: 1.3407 | E98: 176.5196 | F98: 1111.615445
B99: 22 | C99: OP Pescada | D99: 119.466305 | E99: 90.092065 | F99: 686.1282764
B100: 23 | C100: Petrosynergy | D100: 484.3899 | E100: 8.192 | F100: 535.9160235
B101: 24 | C101: SHB | D101: 412.91257 | E101: 7.82284 | F101: 462.1167473
B102: 25 | C102: Nova Petróleo Rec | D102: 238.9675 | E102: 1.4666 | F102: 248.1921353
B103: 26 | C103: Imetame | D103: 142.8198 | E103: 5.6822 | F103: 178.5597584
B104: 27 | C104: Partex Brasil | D104: 159.10525 | E104: 0.22765 | F104: 160.5371252
B105: 28 | C105: Recôncavo E&P | D105: 106.1608 | E105: 2.0465 | F105: 119.0328962
B106: 29 | C106: Petro Vista | D106: 102.92265 | E106: 1.510125 | F106: 112.4210493
B107: 30 | C107: UP Petróleo | D107: 102.92265 | E107: 1.510125 | F107: 112.4210493
B108: 31 | C108: Phoenix | D108: 11.0786 | E108: 13.1046 | F108: 93.50404413
B109: 32 | C109: Santana | D109: 34.0907 | E109: 1.4977 | F109: 43.51094844
B110: 33 | C110: Vipetro | D110: 34.0055 | E110: 0.0818 | F110: 34.52000646
B111: 34 | C111: IPI | D111: 19.3254 | E111: 0.6268 | F111: 23.26785291
B112: 35 | C112: Perícia | D112: 19.5209 | E112: 0.0621 | F112: 19.9114972
B113: 36 | C113: Alvopetro | D113: 13.999745 | E113: 0.15417 | F113: 14.96944501
B114: 37 | C114: Guto & Cacal | D114: 14.2395 | E114: 0.045 | F114: 14.52254145
B115: 38 | C115: Great Oil | D115: 11.045555 | E115: 0.02033 | F115: 11.17342684
B116: 39 | C116: Sonangol Guanambi | D116: 9.6488 | E116: 0.0747 | F116: 10.11864881
B117: 40 | C117: EPG Brasil | D117: 7.231 | E117: 0.1852 | F117: 8.395872812
B118: 41 | C118: Central Resources | D118: 8.334 | E118: 0.0082 | F118: 8.385576442
B119: 42 | C119: Nord | D119: 2.1116 | E119: 0 | F119: 2.1116
B120: 43 | C120: Leros | D120: 1.3721 | E120: 0.0022 | F120: 1.385937582
C121: Total geral | D121: =SUM(D78:D120) -> 2617345.302 | E121: =SUM(E78:E120) -> 109812.7972 | F121: 3308046.932
B124: Tabela 9. Movimentação de gás natural por destinação (Mm³/d)
B126: Bacia | C126: Consumo Interno | D126: Queima | E126: Disponível | F126: Injeção | G126: Produção
B127: Santos | C127: 4043.988986 | D127: 1678.882649 | E127: 30988.60541 | F127: 22522.176 | G127: 59233.65305
B128: Campos | C128: 7152.569957 | D128: 1493.486472 | E128: 13921.27534 | F128: 397.78325 | G128: 22965.11502
B129: Solimões | C129: 459.8975704 | D129: 170.3850704 | E129: 5472.627571 | F129: 7850.059429 | G129: 13952.96964
B130: Camamu | C130: 85.47117857 | D130: 2.740833571 | E130: 4685.538596 | F130: 0 | G130: 4773.750608
B131: Sergipe | C131: 188.2513996 | D131: 66.38732679 | E131: 537.7375582 | F131: 1502.300427 | G131: 2294.676711
B132: Recôncavo | C132: 130.8910314 | D132: 60.93467179 | E132: 1371.091356 | F132: 622.1636293 | G132: 2185.080689
B133: Espírito Santo | C133: 403.9702379 | D133: 34.36843143 | E133: 1486.351419 | F133: 0 | G133: 1924.690088
B134: Alagoas | C134: 3.025918929 | D134: 15.50010321 | E134: 1164.16082 | F134: 0.006285714286 | G134: 1182.693128
B135: Potiguar | C135: 375.2656754 | D135: 65.09900179 | E135: 562.6537079 | F135: 0 | G135: 1003.018385
B136: Parnaíba | C136: 3.463980714 | D136: 5.410206786 | E136: 167.6454164 | F136: 0 | G136: 176.5196039
B137: Ceará | C137: 0.01189285714 | D137: 4.545535 | E137: 79.55924964 | F137: 0 | G137: 84.1166775
B138: Tucano Sul | C138: 0 | D138: 0.4700421429 | E138: 36.04351464 | F138: 0 | G138: 36.51355679
B139: Total Geral | C139: 12846.80783 | D139: 3598.210344 | E139: 60473.28996 | F139: 32894.48902 | G139: 109812.7972
B142: Tabela 10. Distribuição da produção dos campos do Pré-sal¹
B144: Campo | C144: Petróleo (bbl/d) | E144: Gás natural (Mm³/d) | G144: Produção (boe/d)
C145: Pré-sal¹ | D145: Pós-sal² | E145: Pré-sal¹ | F145: Pós-sal² | G145: Pré-sal¹ | H145: Pós-sal²
B146: Lula | C146: 850265.1553 | D146: 0 | E146: 36154.2882 | F146: 0 | G146: 1077668.759 | H146: 0
B147: Sapinhoá | C147: 265475.4641 | D147: 0 | E147: 10576.98334 | F147: 0 | G147: 332002.6796 | H147: 0
B148: Jubarte³ | C148: 112601.6848 | D148: 69823.65592 | E148: 3737.841202 | F148: 563.9062129 | G148: 136111.9958 | H148: 73370.51885
B149: Lapa | C149: 38319.21852 | D149: 0 | E149: 1031.066318 | F149: 0 | G149: 44804.42976 | H149: 0
B150: Baleia Franca³ | C150: 34283.68182 | D150: 0 | E150: 1357.300866 | F150: 0 | G150: 42820.84638 | H150: 0
B151: Baleia Azul³ | C151: 34821.39543 | D151: 0 | E151: 1185.55814 | F151: 0 | G151: 42278.33087 | H151: 0
B152: Marlim Leste | C152: 30842.21093 | D152: 45004.70519 | E152: 559.7661507 | F152: 650.2191929 | G152: 34363.03366 | H152: 49094.46038
B153: Mero | C153: 16317.77295 | D153: 0 | E153: 1086.98068 | F153: 0 | G153: 23154.6749 | H153: 0
B154: Sururu | C154: 12536.83132 | D154: 0 | E154: 382.9152821 | F154: 0 | G154: 14945.29569 | H154: 0
B155: Caratinga | C155: 6796.866776 | D155: 15124.34776 | E155: 127.0069254 | F155: 278.0268657 | G155: 7595.716205 | H155: 16873.08393
B156: Voador | C156: 2134.2513 | D156: 0 | E156: 69.65803071 | F156: 0 | G156: 2572.387079 | H156: 0
B157: Marlim | C157: 1685.779666 | D157: 132787.1353 | E157: 55.0207425 | F157: 1908.994457 | G157: 2031.849682 | H157: 144794.3477
B158: Barracuda | C158: 1392.12934 | D158: 52960.96932 | E158: 26.01345929 | F158: 787.7618818 | G158: 1555.749056 | H158: 57915.84189
B159: Pirambu³ | C159: 731.0771959 | D159: 0 | E159: 23.39339107 | F159: 0 | G159: 878.217181 | H159: 0
B160: Pampo | C160: 170.4583437 | D160: 10012.45111 | E160: 5.455120714 | F160: 190.6110368 | G160: 204.7700165 | H160: 11211.35831
B161: Outros Campos | C161: 0 | D161: 883258.0596 | E161: 0 | F161: 49054.02966 | G161: 0 | H161: 1191798.586
B162: Total Geral | C162: =SUM(C146:C161) -> 1408373.978 | D162: =SUM(D146:D161) -> 1208971.324 | E162: 56379.24785 | F162: 53433.54931 | G162: 1762988.735 | H162: 1545058.197
B164: Tabela 11. Produção dos poços do Pré-sal¹
B166: Nome ANP do Poço | C166: Campo | D166: Bacia | E166: Petróleo (bbl/d) | F166: Gás natural (Mm³/d) | G166: Produção Total (boe/d)
B167: 8LL87DRJS | C167: Lula | D167: Santos | E167: 33249.1707 | F167: 1111.6579 | G167: 40241.28768
B168: 7SPH17SPS | C168: Sapinhoá | D168: Santos | E168: 32833.6315 | F168: 1098.197 | G168: 39741.08197
B169: 7LL15DRJS | C169: Lula | D169: Santos | E169: 31214.9462 | F169: 1147.0186 | G169: 38429.47526
B170: 7LL83DRJS | C170: Lula | D170: Santos | E170: 29069.864 | F170: 1417.1772 | G170: 37983.63932
B171: 7LL80DBRJS | C171: Lula | D171: Santos | E171: 30550.9402 | F171: 1067.1791 | G171: 37263.29397
B172: 9LL20DRJS | C172: Lula | D172: Santos | E172: 28382.5365 | F172: 1380.6195 | G172: 37066.37084
B173: 7LL36ARJS | C173: Lula | D173: Santos | E173: 27933.1769 | F173: 1384.3747 | G173: 36640.63073
B174: 8LL81DRJS | C174: Lula | D174: Santos | E174: 29571.5705 | F174: 1087.8521 | G174: 36413.95352
B175: 7SPH1SPS | C175: Sapinhoá | D175: Santos | E175: 29473.5483 | F175: 1024.0494 | G175: 35914.62446
B176: 7LL51RJS | C176: Lula | D176: Santos | E176: 26879.0861 | F176: 1302.1176 | G176: 35069.1584
B177: 7LL73DRJS | C177: Lula | D177: Santos | E177: 24450.5714 | F177: 1628.6578 | G177: 34694.51952
B178: 7SPH7DSPS | C178: Sapinhoá | D178: Santos | E178: 27797.1913 | F178: 1001.2798 | G178: 34095.051
B179: 7SPH14DSPS | C179: Sapinhoá | D179: Santos | E179: 26011.7712 | F179: 1025.1473 | G179: 32459.75294
B180: 7LL91RJS | C180: Lula | D180: Santos | E180: 26917.7118 | F180: 872.4663 | G180: 32405.35906
B181: 9LL7RJS | C181: Lula | D181: Santos | E181: 25898.1806 | F181: 1033.9037 | G181: 32401.23843
B182: 9LL12DRJS | C182: Lula | D182: Santos | E182: 26068.4927 | F182: 916.0733 | G182: 31830.4197
B183: 7LL69RJS | C183: Lula | D183: Santos | E183: 25819.3115 | F183: 892.9026 | G183: 31435.4992
B184: 7LL22DRJS | C184: Lula | D184: Santos | E184: 25747.8231 | F184: 881.5395 | G184: 31292.53906
B185: 9BRSA928SPS | C185: Sapinhoá | D185: Santos | E185: 25459.3679 | F185: 894.3956 | G185: 31084.94629
B186: 7SPH4DSPS | C186: Sapinhoá | D186: Santos | E186: 24836.0707 | F186: 855.7774 | G186: 30218.74795
B187: 7SPH3SPS | C187: Sapinhoá | D187: Santos | E187: 22259.3191 | F187: 1226.3611 | G187: 29972.89741
B188: 7LL45DRJS | C188: Lula | D188: Santos | E188: 22943.5938 | F188: 1117.3725 | G188: 29971.65452
B189: 7SPH8SPS | C189: Sapinhoá | D189: Santos | E189: 24162.6614 | F189: 877.288 | G189: 29680.63624
B190: 3BRSA788SPS | C190: Sapinhoá | D190: Santos | E190: 22947.5755 | F190: 1032.7453 | G190: 29443.34722
B191: 7LL84DRJS | C191: Lula | D191: Santos | E191: 23786.9519 | F191: 801.3431 | G191: 28827.24774
B192: 7LL27RJS | C192: Lula | D192: Santos | E192: 21742.6898 | F192: 1119.6883 | G192: 28785.31647
B193: 3BRSA839ARJS | C193: Lula | D193: Santos | E193: 22637.8695 | F193: 964.8037 | G193: 28706.30146
B194: 7LL63DRJS | C194: Lula | D194: Santos | E194: 21776.4802 | F194: 1057.0055 | G194: 28424.84396
B195: 7LL79DRJS | C195: Lula | D195: Santos | E195: 22996.1827 | F195: 772.6247 | G195: 27855.84526
B196: 9LL2RJS | C196: Lula | D196: Santos | E196: 20662.3071 | F196: 1133.9333 | G196: 27794.53211
B197: 6BRSA1222AESS | C197: Jubarte³ | D197: Campos | E197: 23066.3621 | F197: 688.4837 | G197: 27396.79376
B198: 7LL102DRJS | C198: Lula | D198: Santos | E198: 21973.8297 | F198: 781.7348 | G198: 26890.79306
B199: 7LL28DRJS | C199: Lula | D199: Santos | E199: 21982.3482 | F199: 770.8799 | G199: 26831.0363
B200: 7LPA1DSPS | C200: Lapa | D200: Santos | E200: 22651.9196 | F200: 654.5455 | G200: 26768.88643
B201: 7JUB58DPAESS | C201: Jubarte³ | D201: Campos | E201: 21292.4131 | F201: 799.7732 | G201: 26322.83457
B202: 3BRSA496RJS | C202: Lula | D202: Santos | E202: 19575.6865 | F202: 1014.1919 | G202: 25954.76085
B203: 7LL97RJS | C203: Lula | D203: Santos | E203: 21182.5919 | F203: 745.704 | G203: 25872.92838
B204: 9LL19RJS | C204: Lula | D204: Santos | E204: 21604.8484 | F204: 656.9973 | G204: 25737.23659
B205: 7JUB34HESS | C205: Jubarte³ | D205: Campos | E205: 20988.4567 | F205: 735.1455 | G205: 25612.38222
B206: 7BFR7ESS | C206: Baleia Franca³ | D206: Campos | E206: 19165.9588 | F206: 706.351 | G206: 23608.77238
B207: 3BRSA1305ARJS | C207: Mero | D207: Santos | E207: 16317.7729 | F207: 1086.9807 | G207: 23154.67498
B208: 7LL85RJS | C208: Lula | D208: Santos | E208: 17580.2604 | F208: 841.6291 | G208: 22873.94753
B209: 7LL31DRJS | C209: Lula | D209: Santos | E209: 16970.6745 | F209: 858.5051 | G209: 22370.50846
B210: 7SPH5SPS | C210: Sapinhoá | D210: Santos | E210: 16149.8682 | F210: 945.9455 | G210: 22099.68567
B211: 3BRSA865ARJS | C211: Lula | D211: Santos | E211: 17245.4199 | F211: 654.6803 | G211: 21363.2346
B212: 7LL46RJS | C212: Lula | D212: Santos | E212: 16428.1845 | F212: 758.6204 | G212: 21199.76268
B213: 3BRSA830RJS | C213: Lula | D213: Santos | E213: 13308.0096 | F213: 1114.6086 | G213: 20318.68592
B214: 7LL17DRJS | C214: Lula | D214: Santos | E214: 16658.4854 | F214: 567.3659 | G214: 20227.10911
B215: 3BRSA883RJS | C215: Lula | D215: Santos | E215: 14830.7657 | F215: 829.1019 | G215: 20045.65912
B216: 7LL66RJS | C216: Lula | D216: Santos | E216: 16113.3552 | F216: 562.7346 | G216: 19652.84891
B217: 7BFR12PAESS | C217: Baleia Franca³ | D217: Campos | E217: 15117.723 | F217: 650.9499 | G217: 19212.07419
B218: 7LL48DRJS | C218: Lula | D218: Santos | E218: 15470.8374 | F218: 526.9517 | G218: 18785.26347
B219: 8LPA2DSPS | C219: Lapa | D219: Santos | E219: 15667.299 | F219: 376.5209 | G219: 18035.54392
B220: 9BRSA908DRJS | C220: Lula | D220: Santos | E220: 13063.5528 | F220: 788.6545 | G220: 18024.03976
B221: 7SPH16DSPS | C221: Sapinhoá | D221: Santos | E221: 13382.9559 | F221: 590.1374 | G221: 17094.80802
B222: 7LL58RJS | C222: Lula | D222: Santos | E222: 13385.0614 | F222: 444.792 | G222: 16182.71857
... 28 more rows

Sheet 3. Ranking
B2: 3. RANKING - FEVEREIRO 2018
B6: Tabela 12. Os 30 poços com maior produção de petróleo (bbl/d)
B8: Nº | C8: Nome ANP do Poço | D8: Campo | E8: Bacia | F8: Localização | G8: Operador | H8: Petróleo (bbl/d)
B9: 1 | C9: 8LL87DRJS | D9: Lula | E9: Santos | F9: Mar | G9: Petrobras | H9: 33249
B10: 2 | C10: 7SPH17SPS | D10: Sapinhoá | E10: Santos | F10: Mar | G10: Petrobras | H10: 32834
B11: 3 | C11: 7LL15DRJS | D11: Lula | E11: Santos | F11: Mar | G11: Petrobras | H11: 31215
B12: 4 | C12: 7LL80DBRJS | D12: Lula | E12: Santos | F12: Mar | G12: Petrobras | H12: 30551
B13: 5 | C13: 8LL81DRJS | D13: Lula | E13: Santos | F13: Mar | G13: Petrobras | H13: 29572
B14: 6 | C14: 7SPH1SPS | D14: Sapinhoá | E14: Santos | F14: Mar | G14: Petrobras | H14: 29474
B15: 7 | C15: 7LL83DRJS | D15: Lula | E15: Santos | F15: Mar | G15: Petrobras | H15: 29070
B16: 8 | C16: 9LL20DRJS | D16: Lula | E16: Santos | F16: Mar | G16: Petrobras | H16: 28383
B17: 9 | C17: 7LL36ARJS | D17: Lula | E17: Santos | F17: Mar | G17: Petrobras | H17: 27933
B18: 10 | C18: 7SPH7DSPS | D18: Sapinhoá | E18: Santos | F18: Mar | G18: Petrobras | H18: 27797
B19: 11 | C19: 7LL91RJS | D19: Lula | E19: Santos | F19: Mar | G19: Petrobras | H19: 26918
B20: 12 | C20: 7LL51RJS | D20: Lula | E20: Santos | F20: Mar | G20: Petrobras | H20: 26879
B21: 13 | C21: 9LL12DRJS | D21: Lula | E21: Santos | F21: Mar | G21: Petrobras | H21: 26068
B22: 14 | C22: 7SPH14DSPS | D22: Sapinhoá | E22: Santos | F22: Mar | G22: Petrobras | H22: 26012
B23: 15 | C23: 9LL7RJS | D23: Lula | E23: Santos | F23: Mar | G23: Petrobras | H23: 25898
B24: 16 | C24: 7LL69RJS | D24: Lula | E24: Santos | F24: Mar | G24: Petrobras | H24: 25819
B25: 17 | C25: 7LL22DRJS | D25: Lula | E25: Santos | F25: Mar | G25: Petrobras | H25: 25748
B26: 18 | C26: 9BRSA928SPS | D26: Sapinhoá | E26: Santos | F26: Mar | G26: Petrobras | H26: 25459
B27: 19 | C27: 7SPH4DSPS | D27: Sapinhoá | E27: Santos | F27: Mar | G27: Petrobras | H27: 24836
B28: 20 | C28: 7LL73DRJS | D28: Lula | E28: Santos | F28: Mar | G28: Petrobras | H28: 24451
B29: 21 | C29: 7SPH8SPS | D29: Sapinhoá | E29: Santos | F29: Mar | G29: Petrobras | H29: 24163
B30: 22 | C30: 7LL84DRJS | D30: Lula | E30: Santos | F30: Mar | G30: Petrobras | H30: 23787
B31: 23 | C31: 6BRSA1222AESS | D31: Jubarte³ | E31: Campos | F31: Mar | G31: Petrobras | H31: 23066
B32: 24 | C32: 7LL79DRJS | D32: Lula | E32: Santos | F32: Mar | G32: Petrobras | H32: 22996
B33: 25 | C33: 3BRSA788SPS | D33: Sapinhoá | E33: Santos | F33: Mar | G33: Petrobras | H33: 22948
B34: 26 | C34: 7LL45DRJS | D34: Lula | E34: Santos | F34: Mar | G34: Petrobras | H34: 22944
B35: 27 | C35: 7LPA1DSPS | D35: Lapa | E35: Santos | F35: Mar | G35: Total E&P do Brasil | H35: 22652
B36: 28 | C36: 3BRSA839ARJS | D36: Lula | E36: Santos | F36: Mar | G36: Petrobras | H36: 22638
B37: 29 | C37: 7SPH3SPS | D37: Sapinhoá | E37: Santos | F37: Mar | G37: Petrobras | H37: 22259
B38: 30 | C38: 7LL28DRJS | D38: Lula | E38: Santos | F38: Mar | G38: Petrobras | H38: 21982
B41: Tabela 13. Os 30 poços com maior produção de gás natural (Mm³/d)
B43: Nº | C43: Nome ANP do Poço | D43: Campo | E43: Bacia | F43: Localização | G43: Operador | H43: Gás Natural (Mm³/d)
B44: 1 | C44: 7MXL17HPASPS | D44: Mexilhão | E44: Santos | F44: Mar | G44: Petrobras | H44: 1858
B45: 2 | C45: 7MXL18HASPS | D45: Mexilhão | E45: Santos | F45: Mar | G45: Petrobras | H45: 1845
B46: 3 | C46: 7LL73DRJS | D46: Lula | E46: Santos | F46: Mar | G46: Petrobras | H46: 1629
B47: 4 | C47: 7LL83DRJS | D47: Lula | E47: Santos | F47: Mar | G47: Petrobras | H47: 1417
B48: 5 | C48: 7LL36ARJS | D48: Lula | E48: Santos | F48: Mar | G48: Petrobras | H48: 1384
B49: 6 | C49: 9LL20DRJS | D49: Lula | E49: Santos | F49: Mar | G49: Petrobras | H49: 1381
B50: 7 | C50: 7LL51RJS | D50: Lula | E50: Santos | F50: Mar | G50: Petrobras | H50: 1302
B51: 8 | C51: 7SPH3SPS | D51: Sapinhoá | E51: Santos | F51: Mar | G51: Petrobras | H51: 1226
B52: 9 | C52: 7MNT6DBAS | D52: Manati | E52: Camamu | F52: Mar | G52: Petrobras | H52: 1169
B53: 10 | C53: 7LL15DRJS | D53: Lula | E53: Santos | F53: Mar | G53: Petrobras | H53: 1147
B54: 11 | C54: 9LL2RJS | D54: Lula | E54: Santos | F54: Mar | G54: Petrobras | H54: 1134
B55: 12 | C55: 7LL27RJS | D55: Lula | E55: Santos | F55: Mar | G55: Petrobras | H55: 1120
B56: 13 | C56: 7LL45DRJS | D56: Lula | E56: Santos | F56: Mar | G56: Petrobras | H56: 1117
B57: 14 | C57: 3BRSA830RJS | D57: Lula | E57: Santos | F57: Mar | G57: Petrobras | H57: 1115
B58: 15 | C58: 8LL87DRJS | D58: Lula | E58: Santos | F58: Mar | G58: Petrobras | H58: 1112
B59: 16 | C59: 7SPH17SPS | D59: Sapinhoá | E59: Santos | F59: Mar | G59: Petrobras | H59: 1098
B60: 17 | C60: 8LL81DRJS | D60: Lula | E60: Santos | F60: Mar | G60: Petrobras | H60: 1088
B61: 18 | C61: 3BRSA1305ARJS | D61: Mero | E61: Santos | F61: Mar | G61: Petrobras | H61: 1087
B62: 19 | C62: 7LL80DBRJS | D62: Lula | E62: Santos | F62: Mar | G62: Petrobras | H62: 1067
B63: 20 | C63: 7LL63DRJS | D63: Lula | E63: Santos | F63: Mar | G63: Petrobras | H63: 1057
B64: 21 | C64: 9LL7RJS | D64: Lula | E64: Santos | F64: Mar | G64: Petrobras | H64: 1034
B65: 22 | C65: 3BRSA788SPS | D65: Sapinhoá | E65: Santos | F65: Mar | G65: Petrobras | H65: 1033
B66: 23 | C66: 7SPH14DSPS | D66: Sapinhoá | E66: Santos | F66: Mar | G66: Petrobras | H66: 1025
B67: 24 | C67: 7SPH1SPS | D67: Sapinhoá | E67: Santos | F67: Mar | G67: Petrobras | H67: 1024
B68: 25 | C68: 3BRSA496RJS | D68: Lula | E68: Santos | F68: Mar | G68: Petrobras | H68: 1014
B69: 26 | C69: 7SPH7DSPS | D69: Sapinhoá | E69: Santos | F69: Mar | G69: Petrobras | H69: 1001
B70: 27 | C70: 3BRSA839ARJS | D70: Lula | E70: Santos | F70: Mar | G70: Petrobras | H70: 965
B71: 28 | C71: 7SPH5SPS | D71: Sapinhoá | E71: Santos | F71: Mar | G71: Petrobras | H71: 946
B72: 29 | C72: 9LL12DRJS | D72: Lula | E72: Santos | F72: Mar | G72: Petrobras | H72: 916
B73: 30 | C73: 9BRSA928SPS | D73: Sapinhoá | E73: Santos | F73: Mar | G73: Petrobras | H73: 894
B76: Tabela 14. Os 30 poços com maior produção total (boe/d)
B78: Nº | C78: Nome ANP do Poço | D78: Campo | E78: Bacia | F78: Localização | G78: Operador | H78: Produção (boe/d)
B79: 1 | C79: 8LL87DRJS | D79: Lula | E79: Santos | F79: Mar | G79: Petrobras | H79: 40241
B80: 2 | C80: 7SPH17SPS | D80: Sapinhoá | E80: Santos | F80: Mar | G80: Petrobras | H80: 39741
B81: 3 | C81: 7LL15DRJS | D81: Lula | E81: Santos | F81: Mar | G81: Petrobras | H81: 38429
B82: 4 | C82: 7LL83DRJS | D82: Lula | E82: Santos | F82: Mar | G82: Petrobras | H82: 37984
B83: 5 | C83: 7LL80DBRJS | D83: Lula | E83: Santos | F83: Mar | G83: Petrobras | H83: 37263
B84: 6 | C84: 9LL20DRJS | D84: Lula | E84: Santos | F84: Mar | G84: Petrobras | H84: 37066
B85: 7 | C85: 7LL36ARJS | D85: Lula | E85: Santos | F85: Mar | G85: Petrobras | H85: 36641
B86: 8 | C86: 8LL81DRJS | D86: Lula | E86: Santos | F86: Mar | G86: Petrobras | H86: 36414
B87: 9 | C87: 7SPH1SPS | D87: Sapinhoá | E87: Santos | F87: Mar | G87: Petrobras | H87: 35915
B88: 10 | C88: 7LL51RJS | D88: Lula | E88: Santos | F88: Mar | G88: Petrobras | H88: 35069
B89: 11 | C89: 7LL73DRJS | D89: Lula | E89: Santos | F89: Mar | G89: Petrobras | H89: 34695
B90: 12 | C90: 7SPH7DSPS | D90: Sapinhoá | E90: Santos | F90: Mar | G90: Petrobras | H90: 34095
B91: 13 | C91: 7SPH14DSPS | D91: Sapinhoá | E91: Santos | F91: Mar | G91: Petrobras | H91: 32460
B92: 14 | C92: 7LL91RJS | D92: Lula | E92: Santos | F92: Mar | G92: Petrobras | H92: 32405
B93: 15 | C93: 9LL7RJS | D93: Lula | E93: Santos | F93: Mar | G93: Petrobras | H93: 32401
B94: 16 | C94: 9LL12DRJS | D94: Lula | E94: Santos | F94: Mar | G94: Petrobras | H94: 31830
B95: 17 | C95: 7LL69RJS | D95: Lula | E95: Santos | F95: Mar | G95: Petrobras | H95: 31435
B96: 18 | C96: 7LL22DRJS | D96: Lula | E96: Santos | F96: Mar | G96: Petrobras | H96: 31293
B97: 19 | C97: 9BRSA928SPS | D97: Sapinhoá | E97: Santos | F97: Mar | G97: Petrobras | H97: 31085
B98: 20 | C98: 7SPH4DSPS | D98: Sapinhoá | E98: Santos | F98: Mar | G98: Petrobras | H98: 30219
B99: 21 | C99: 7SPH3SPS | D99: Sapinhoá | E99: Santos | F99: Mar | G99: Petrobras | H99: 29973
B100: 22 | C100: 7LL45DRJS | D100: Lula | E100: Santos | F100: Mar | G100: Petrobras | H100: 29972
B101: 23 | C101: 7SPH8SPS | D101: Sapinhoá | E101: Santos | F101: Mar | G101: Petrobras | H101: 29681
B102: 24 | C102: 3BRSA788SPS | D102: Sapinhoá | E102: Santos | F102: Mar | G102: Petrobras | H102: 29443
B103: 25 | C103: 7LL84DRJS | D103: Lula | E103: Santos | F103: Mar | G103: Petrobras | H103: 28827
B104: 26 | C104: 7LL27RJS | D104: Lula | E104: Santos | F104: Mar | G104: Petrobras | H104: 28785
B105: 27 | C105: 3BRSA839ARJS | D105: Lula | E105: Santos | F105: Mar | G105: Petrobras | H105: 28706
B106: 28 | C106: 7LL63DRJS | D106: Lula | E106: Santos | F106: Mar | G106: Petrobras | H106: 28425
B107: 29 | C107: 7LL79DRJS | D107: Lula | E107: Santos | F107: Mar | G107: Petrobras | H107: 27856
B108: 30 | C108: 9LL2RJS | D108: Lula | E108: Santos | F108: Mar | G108: Petrobras | H108: 27795
B111: Tabela 15. Os 30 poços terrestres com maior produção de petróleo (bbl/d)
B113: Nº | C113: Nome ANP do Poço | D113: Campo | E113: Bacia | F113: Localização | G113: Operador | H113: Petróleo (bbl/d)
B114: 1 | C114: 3GTE4DPABA | D114: Tiê | E114: Recôncavo | F114: Terra | G114: Maha Energy | H114: 1395
B115: 2 | C115: 1BRSA769AM | D115: Arara Azul | E115: Solimões | F115: Terra | G115: Petrobras | H115: 1083
B116: 3 | C116: 7LUC69HPAM | D116: Leste Do Urucu | E116: Solimões | F116: Terra | G116: Petrobras | H116: 1000
B117: 4 | C117: 7RUC112HPAAM | D117: Rio Urucu | E117: Solimões | F117: Terra | G117: Petrobras | H117: 782
B118: 5 | C118: 3SUC 0003 AM | D118: Rio Urucu | E118: Solimões | F118: Terra | G118: Petrobras | H118: 750
B119: 6 | C119: 7LUC 0038HPAM | D119: Leste Do Urucu | E119: Solimões | F119: Terra | G119: Petrobras | H119: 722
B120: 7 | C120: 9RUC75DAM | D120: Rio Urucu | E120: Solimões | F120: Terra | G120: Petrobras | H120: 704
B121: 8 | C121: 7LUC71HPAM | D121: Leste Do Urucu | E121: Solimões | F121: Terra | G121: Petrobras | H121: 679
B122: 9 | C122: 7LUC88HPAM | D122: Leste Do Urucu | E122: Solimões | F122: Terra | G122: Petrobras | H122: 657
B123: 10 | C123: 7LUC 0041HPAM | D123: Leste Do Urucu | E123: Solimões | F123: Terra | G123: Petrobras | H123: 573
B124: 11 | C124: 7LUC 0032HAAM | D124: Leste Do Urucu | E124: Solimões | F124: Terra | G124: Petrobras | H124: 570
B125: 12 | C125: 7LUC63HPAM | D125: Leste Do Urucu | E125: Solimões | F125: Terra | G125: Petrobras | H125: 564
B126: 13 | C126: 7RUC 0039HPAM | D126: Rio Urucu | E126: Solimões | F126: Terra | G126: Petrobras | H126: 545
B127: 14 | C127: 7LUC65HPAM | D127: Leste Do Urucu | E127: Solimões | F127: Terra | G127: Petrobras | H127: 538
B128: 15 | C128: 7LUC61HPAM | D128: Leste Do Urucu | E128: Solimões | F128: Terra | G128: Petrobras | H128: 532
B129: 16 | C129: 7AR371DBA | D129: Araçás | E129: Recôncavo | F129: Terra | G129: Petrobras | H129: 521
B130: 17 | C130: 7RUC103DPAM | D130: Rio Urucu | E130: Solimões | F130: Terra | G130: Petrobras | H130: 506
B131: 18 | C131: 3RUC 0016D AM | D131: Rio Urucu | E131: Solimões | F131: Terra | G131: Petrobras | H131: 486
B132: 19 | C132: 7RUC67HPAAM | D132: Rio Urucu | E132: Solimões | F132: Terra | G132: Petrobras | H132: 444
B133: 20 | C133: 7LUC90HPAM | D133: Leste Do Urucu | E133: Solimões | F133: Terra | G133: Petrobras | H133: 444
B134: 21 | C134: 7ANB7DAL | D134: Anambé | E134: Alagoas | F134: Terra | G134: Petrobras | H134: 422
B135: 22 | C135: 7LUC80DPAM | D135: Leste Do Urucu | E135: Solimões | F135: Terra | G135: Petrobras | H135: 416
B136: 23 | C136: 4SMT 0003 AM | D136: Araracanga | E136: Solimões | F136: Terra | G136: Petrobras | H136: 394
B137: 24 | C137: 7LUC67HPAM | D137: Leste Do Urucu | E137: Solimões | F137: Terra | G137: Petrobras | H137: 386
B138: 25 | C138: 7C 0207 BA | D138: Candeias | E138: Recôncavo | F138: Terra e Mar | G138: Petrobras | H138: 384
B139: 26 | C139: 7LUC 0042HPAM | D139: Leste Do Urucu | E139: Solimões | F139: Terra | G139: Petrobras | H139: 373
B140: 27 | C140: 1SMT 0002 AM | D140: Araracanga | E140: Solimões | F140: Terra | G140: Petrobras | H140: 369
B141: 28 | C141: 3RUC 0008 AM | D141: Rio Urucu | E141: Solimões | F141: Terra | G141: Petrobras | H141: 359
B142: 29 | C142: 7LUC59HPAM | D142: Leste Do Urucu | E142: Solimões | F142: Terra | G142: Petrobras | H142: 354
B143: 30 | C143: 3BRSA1171DPAM | D143: Rio Urucu | E143: Solimões | F143: Terra | G143: Petrobras | H143: 353
B146: Tabela 16. Os 30 poços terrestres com maior produção de gás natural (Mm³/d)
B148: Nº | C148: Nome ANP do Poço | D148: Campo | E148: Bacia | F148: Localização | G148: Operador | H148: Gás Natural (Mm³/d)
B149: 1 | C149: 9RUC75DAM | D149: Rio Urucu | E149: Solimões | F149: Terra | G149: Petrobras | H149: 573
B150: 2 | C150: 7LUC71HPAM | D150: Leste Do Urucu | E150: Solimões | F150: Terra | G150: Petrobras | H150: 529
B151: 3 | C151: 7LUC 0041HPAM | D151: Leste Do Urucu | E151: Solimões | F151: Terra | G151: Petrobras | H151: 458
B152: 4 | C152: 3RUC 0016D AM | D152: Rio Urucu | E152: Solimões | F152: Terra | G152: Petrobras | H152: 455
B153: 5 | C153: 7RUC103DPAM | D153: Rio Urucu | E153: Solimões | F153: Terra | G153: Petrobras | H153: 444
B154: 6 | C154: 7LUC63HPAM | D154: Leste Do Urucu | E154: Solimões | F154: Terra | G154: Petrobras | H154: 443
B155: 7 | C155: 7LUC 0042HPAM | D155: Leste Do Urucu | E155: Solimões | F155: Terra | G155: Petrobras | H155: 422
B156: 8 | C156: 4SMT 0003 AM | D156: Araracanga | E156: Solimões | F156: Terra | G156: Petrobras | H156: 414
B157: 9 | C157: 7RUC67HPAAM | D157: Rio Urucu | E157: Solimões | F157: Terra | G157: Petrobras | H157: 408
B158: 10 | C158: 7RUC58HPAM | D158: Rio Urucu | E158: Solimões | F158: Terra | G158: Petrobras | H158: 402
B159: 11 | C159: 1SMT 0002 AM | D159: Araracanga | E159: Solimões | F159: Terra | G159: Petrobras | H159: 393
B160: 12 | C160: 7LUC80DPAM | D160: Leste Do Urucu | E160: Solimões | F160: Terra | G160: Petrobras | H160: 365
B161: 13 | C161: 7LUC65HPAM | D161: Leste Do Urucu | E161: Solimões | F161: Terra | G161: Petrobras | H161: 361
B162: 14 | C162: 7RUC 0039HPAM | D162: Rio Urucu | E162: Solimões | F162: Terra | G162: Petrobras | H162: 359
B163: 15 | C163: 7LUC 0038HPAM | D163: Leste Do Urucu | E163: Solimões | F163: Terra | G163: Petrobras | H163: 357
B164: 16 | C164: 7RUC56HPAM | D164: Rio Urucu | E164: Solimões | F164: Terra | G164: Petrobras | H164: 320
B165: 17 | C165: 9LUC91DAM | D165: Leste Do Urucu | E165: Solimões | F165: Terra | G165: Petrobras | H165: 315
B166: 18 | C166: 7LUC61HPAM | D166: Leste Do Urucu | E166: Solimões | F166: Terra | G166: Petrobras | H166: 311
B167: 19 | C167: 3RUC 0008 AM | D167: Rio Urucu | E167: Solimões | F167: Terra | G167: Petrobras | H167: 311
B168: 20 | C168: 3BRSA1171DPAM | D168: Rio Urucu | E168: Solimões | F168: Terra | G168: Petrobras | H168: 309
B169: 21 | C169: 7RUC 0018D AM | D169: Rio Urucu | E169: Solimões | F169: Terra | G169: Petrobras | H169: 306
B170: 22 | C170: 7LUC59HPAM | D170: Leste Do Urucu | E170: Solimões | F170: Terra | G170: Petrobras | H170: 297
B171: 23 | C171: 7LUC 0022DPAM | D171: Leste Do Urucu | E171: Solimões | F171: Terra | G171: Petrobras | H171: 277
B172: 24 | C172: 9RUC97DPAM | D172: Rio Urucu | E172: Solimões | F172: Terra | G172: Petrobras | H172: 268
B173: 25 | C173: 7LUC57HPAM | D173: Leste Do Urucu | E173: Solimões | F173: Terra | G173: Petrobras | H173: 266
B174: 26 | C174: 3BRSA515AM | D174: Rio Urucu | E174: Solimões | F174: Terra | G174: Petrobras | H174: 265
B175: 27 | C175: 7LUC 0032HAAM | D175: Leste Do Urucu | E175: Solimões | F175: Terra | G175: Petrobras | H175: 265
B176: 28 | C176: 9RUC63DAM | D176: Rio Urucu | E176: Solimões | F176: Terra | G176: Petrobras | H176: 265
B177: 29 | C177: 7LUC88HPAM | D177: Leste Do Urucu | E177: Solimões | F177: Terra | G177: Petrobras | H177: 259
B178: 30 | C178: 7LUC69HPAM | D178: Leste Do Urucu | E178: Solimões | F178: Terra | G178: Petrobras | H178: 258
B181: Tabela 17. As 30 instalações com maior produção de petróleo (bbl/d)
B183: Instalação | C183: Petróleo (bbl/d) | D183: Gás natural (Mm³/d) | E183: Produção (boe/d) | F183: Nº poços produtores | G183: Campos Produtores
B184: FPSO CIDADE DE SAQUAREMA | C184: 150337 | D184: 5762 | E184: 186579 | F184: 7 | G184: Lula
B185: FPSO CIDADE DE MARICÁ | C185: 149850 | D185: 5421 | E185: 183945 | F185: 7 | G185: Lula
B186: FPSO CIDADE DE ILHA BELA | C186: 147136 | D186: 5625 | E186: 182515 | F186: 6 | G186: Sapinhoá
B187: PETROBRAS 58 | C187: 141696 | D187: 4532 | E187: 170204 | F187: 11 | G187: Baleia Anã³/Baleia Azul³/Baleia Franca³/Jubarte³
B188: FPSO CIDADE DE ITAGUAÍ | C188: 130283 | D188: 6661 | E188: 172177 | F188: 5 | G188: Lula
B189: FPSO CIDADE DE MANGARATIBA | C189: 124697 | D189: 6761 | E189: 167224 | F189: 6 | G189: Lula
B190: FPSO CIDADE DE SÃO PAULO | C190: 118340 | D190: 4952 | E190: 149488 | F190: 6 | G190: Sapinhoá
B191: FPSO CIDADE DE PARATY | C191: 118248 | D191: 4078 | E191: 143895 | F191: 6 | G191: Lula
B192: PETROBRAS 66 (P-66) | C192: 89157 | D192: 3544 | E192: 111449 | F192: 5 | G192: Lula
B193: FPSO CIDADE DE ANGRA DOS REIS | C193: 87692 | D193: 3928 | E193: 112400 | F193: 6 | G193: Lula
B194: PETROBRAS 52 | C194: 86184 | D194: 1808 | E194: 97554 | F194: 16 | G194: Roncador
B195: PETROBRAS 40 | C195: 71727 | D195: 1246 | E195: 79565 | F195: 15 | G195: Marlim/Marlim Sul
B196: PETROBRAS 57 | C196: 63024 | D196: 498 | E196: 66159 | F196: 16 | G196: Jubarte³
B197: PEREGRINO A | C197: 53812 | D197: 96 | E197: 54418 | F197: 16 | G197: Peregrino
B198: PETROBRAS 54 | C198: 50773 | D198: 589 | E198: 54478 | F198: 12 | G198: Roncador
B199: PETROBRAS 55 | C199: 50741 | D199: 851 | E199: 56095 | F199: 12 | G199: Roncador
B200: PETROBRAS 43 | C200: 49314 | D200: 636 | E200: 53314 | F200: 19 | G200: Barracuda/Caratinga
B201: PETROBRAS 56 | C201: 47738 | D201: 1201 | E201: 55291 | F201: 10 | G201: Marlim Sul
B202: FPSO ESPIRITO SANTO | C202: 44953 | D202: 414 | E202: 47557 | F202: 19 | G202: Argonauta/Ostra
B203: PETROBRAS 50 | C203: 44264 | D203: 825 | E203: 49450 | F203: 16 | G203: Albacora/Albacora Leste
B204: FPSO CIDADE DE ANCHIETA | C204: 43757 | D204: 1554 | E204: 53531 | F204: 5 | G204: Baleia Azul³/Jubarte³/Pirambu³
B205: PETROBRAS 53 | C205: 41956 | D205: 640 | E205: 45982 | F205: 15 | G205: Marlim Leste
B206: PETROBRAS 51 | C206: 39048 | D206: 591 | E206: 42763 | F206: 12 | G206: Marlim Sul
B207: FPSO CIDADE DE CARAGUATATUBA | C207: 38319 | D207: 1031 | E207: 44804 | F207: 2 | G207: Lapa
B208: PETROBRAS 62 | C208: 35155 | D208: 1901 | E208: 47114 | F208: 13 | G208: Roncador
B209: FPSO CIDADE DE ITAJAÍ | C209: 33994 | D209: 237 | E209: 35484 | F209: 6 | G209: Baúna
B210: FPSO CIDADE DE NITEROI | C210: 33891 | D210: 570 | E210: 37476 | F210: 5 | G210: Marlim Leste
B211: PETROBRAS 19 | C211: 31376 | D211: 426 | E211: 34055 | F211: 10 | G211: Marlim/Marlim Sul
B212: PETROBRAS 25 | C212: 28376 | D212: 420 | E212: 31019 | F212: 13 | G212: Albacora
B213: PETROBRAS 37 | C213: 28176 | D213: 453 | E213: 31023 | F213: 8 | G213: Marlim/Marlim Sul
B216: Tabela 18. As 30 instalações com maior produção de gás natural (Mm³/d)
B218: Plataforma | C218: Petróleo (bbl/d) | D218: Gás natural (Mm³/d) | E218: Produção (boe/d) | F218: Nº poços produtores | G218: Campos Produtores
B219: POLO ARARA | C219: 11186 | D219: 7800 | E219: 60244 | F219: 34 | G219: Arara Azul/Araracanga/Carapanúba/ Cupiúba/Rio Urucu/Sudoeste Urucu
B220: PLATAFORMA DE MEXILHÃO | C220: 5618 | D220: 7423 | E220: 52306 | F220: 7 | G220: Mexilhão
B221: FPSO CIDADE DE MANGARATIBA | C221: 124697 | D221: 6761 | E221: 167224 | F221: 6 | G221: Lula
B222: FPSO CIDADE DE ITAGUAÍ | C222: 130283 | D222: 6661 | E222: 172177 | F222: 5 | G222: Lula
B223: FPSO CIDADE DE SAQUAREMA | C223: 150337 | D223: 5762 | E223: 186579 | F223: 7 | G223: Lula
... 47 more rows
